[Event "2nd Goa GM Open 2019"]
[Site "Goa"]
[Date "2019.06.19"]
[Round "3.6"]
[White "Viani Antonio Dcunha"]
[Black "Paichadze, Luka"]
[Result "1-0"]
[ECO "B12"]
[WhiteElo "2362"]
[BlackElo "2557"]
[Annotator "ChessBase"]
[PlyCount "95"]
[EventDate "2019.06.17"]
[EventType "swiss"]
[EventCountry "IND"]
[SourceTitle "playchess.com"]
[Source "ChessBase"]
[SourceQuality "1"]
[TimeControl "5400+30"]

1. e4 {[%emt 0:00:00]} c6 {[%emt 0:00:00]} 2. d4 {[%emt 0:00:05]} d5 {[%emt 0:00:00]} 3. Nd2 {[%emt 0:00:06]} g6 {[%emt 0:00:00]} 4. Ngf3 {[%emt 0:00:48]} Bg7 {[%emt 0:00:04]} 5. Bd3 {[%emt 0:01:15]} Nh6 {[%emt 0:00:52]} 6. c3 {[%emt 0:02:13]} O-O {[%emt 0:01:03]} 7. Qc2 {[%emt 0:02:40]} b6 {[%emt 0:06:50]} 8. h4 {[%emt 0:04:50]} Ba6 {[%emt 0:13:40]} 9. h5 {[%emt 0:03:08]} Bxd3 {[%emt 0:00:05]} 10. Qxd3 {[%emt 0:00:05]} Qc8 {[%emt 0:01:24]} 11. Nf1 {[%emt 0:14:34]} dxe4 {[%emt 0:12:50]} 12. Qxe4 {[%emt 0:00:13]} Ng4 {[%emt 0:04:39]} 13. hxg6 {[%emt 0:06:17]} fxg6 {[%emt 0:04:16]} 14. Ne3 {[%emt 0:05:32]} Nf6 {[%emt 0:04:01]} 15. Qh4 {[%emt 0:00:30]} Re8 {[%emt 0:10:03]} 16. Bd2 {[%emt 0:09:12]} Nbd7 {[%emt 0:05:52]} 17. Ng4 {[%emt 0:09:26]} Nf8 {[%emt 0:04:17]} 18. Nh6+ {[%emt 0:05:17]} Bxh6 {[%emt 0:00:10]} 19. Bxh6 {[%emt 0:00:40]} Qg4 {[%emt 0:04:19]} 20. O-O-O {[%emt 0:00:27]} Qxh4 {[%emt 0:00:06]} 21. Rxh4 {[%emt 0:00:05]} Rad8 {[%emt 0:01:32]} 22. Ne5 {[%emt 0:05:11]} Rd6 {[%emt 0:00:47]} 23. Re1 {[%emt 0:05:12]} N6d7 {[%emt 0:05:02]} 24. Rhe4 {[%emt 0:04:55]} Nf6 {[%emt 0:04:26]} 25. R4e2 {[%emt 0:00:07]} Nd5 {[%emt 0:00:26]} 26. f4 {[%emt 0:02:23]} b5 {[%emt 0:02:34]} 27. g4 {[%emt 0:01:29]} Rc8 {[%emt 0:05:08]} 28. f5 {[%emt 0:07:26]} Nd7 {[%emt 0:01:08]} 29. Bg5 {[%emt 0:01:50]} c5 {[%emt 0:01:01]} 30. dxc5 {[%emt 0:01:38]} Rxc5 {[%emt 0:05:25]} 31. fxg6 {[%emt 0:01:20]} hxg6 {[%emt 0:00:06]} 32. Bxe7 {[%emt 0:00:46]} Nxe7 {[%emt 0:00:27]} 33. Nxd7 {[%emt 0:00:06]} Rxd7 {[%emt 0:00:15]} 34. Rxe7 {[%emt 0:00:05]} Rxe7 {[%emt 0:00:28]} 35. Rxe7 {[%emt 0:00:05]} a5 {[%emt 0:01:47]} 36. Kc2 {[%emt 0:00:39]} Rc4 {[%emt 0:00:50]} 37. Re5 {[%emt 0:00:41]} Rxg4 {[%emt 0:00:30]} 38. Rxb5 {[%emt 0:00:07]} a4 {[%emt 0:00:04]} 39. a3 {[%emt 0:05:02]} g5 {[%emt 0:00:44]} 40. Rb4 {[%emt 0:00:23]} Rh4 {[%emt 0:00:49]} 41. c4 {[%emt 0:01:21]} Rf4 {[%emt 0:00:05]} 42. c5 {[%emt 0:00:33]} Kf7 {[%emt 0:00:17]} 43. Kd3 {[%emt 0:01:02]} Ke6 {[%emt 0:00:43]} 44. Ke3 {[%emt 0:00:05]} Kd5 {[%emt 0:00:24]} 45. Rxf4 {[%emt 0:01:16]} gxf4+ {[%emt 0:00:03]} 46. Kxf4 {[%emt 0:00:04]} Kxc5 {[%emt 0:00:05]} 47. Ke5 {[%emt 0:00:20]} Kc4 {[%emt 0:02:00]} 48. Kd6 {[%emt 0:00:07] Kd5+} 1-0

[Event "2nd Goa GM Open 2019"]
[Site "Goa"]
[Date "2019.06.19"]
[Round "3.7"]
[White "Fier, Alexandr"]
[Black "Sankalp Gupta"]
[Result "0-1"]
[ECO "A17"]
[WhiteElo "2543"]
[BlackElo "2359"]
[Annotator "ChessBase"]
[PlyCount "70"]
[EventDate "2019.06.17"]
[EventType "swiss"]
[EventCountry "IND"]
[SourceTitle "playchess.com"]
[Source "ChessBase"]
[SourceQuality "1"]
[TimeControl "5400+30"]

1. c4 {[%emt 0:00:00]} Nf6 {[%emt 0:00:00]} 2. Nc3 {[%emt 0:00:00]} e6 {[%emt 0:00:00]} 3. Nf3 {[%emt 0:00:00]} Bb4 {[%emt 0:01:43]} 4. Qc2 {[%emt 0:00:00]} d5 {[%emt 0:01:41]} 5. e3 {[%emt 0:01:26]} c5 {[%emt 0:03:45]} 6. a3 {[%emt 0:01:29]} Bxc3 {[%emt 0:07:39]} 7. Qxc3 {[%emt 0:00:14]} dxc4 {[%emt 0:00:23]} 8. Bxc4 {[%emt 0:01:25]} b6 {[%emt 0:00:33]} 9. b3 {[%emt 0:00:15]} Ba6 {[%emt 0:06:31]} 10. Bb2 {[%emt 0:01:58]} O-O {[%emt 0:01:55]} 11. h4 {[%emt 0:02:16]} b5 {[%emt 0:10:54]} 12. Be2 {[%emt 0:02:37]} Nbd7 {[%emt 0:00:06]} 13. Qc2 {[%emt 0:09:22]} c4 {[%emt 0:02:02]} 14. Bd4 {[%emt 0:06:12]} Qc7 {[%emt 0:03:52]} 15. a4 {[%emt 0:01:46]} e5 {[%emt 0:03:04]} 16. Bb2 {[%emt 0:00:05]} e4 {[%emt 0:13:26]} 17. Nd4 {[%emt 0:01:20]} bxa4 {[%emt 0:05:56]} 18. bxc4 {[%emt 0:05:10]} Nc5 {[%emt 0:09:08]} 19. O-O {[%emt 0:00:07]} Rab8 {[%emt 0:02:58]} 20. Nf5 {[%emt 0:01:42]} Bc8 {[%emt 0:02:09]} 21. Bxf6 {[%emt 0:01:58]} gxf6 {[%emt 0:04:19]} 22. Nd4 {[%emt 0:00:14]} Kh8 {[%emt 0:00:06]} 23. f4 {[%emt 0:05:54]} Rg8 {[%emt 0:00:25]} 24. Nb5 {[%emt 0:04:38]} Qe7 {[%emt 0:00:51]} 25. Rf2 {[%emt 0:08:03]} Bg4 {[%emt 0:02:42]} 26. Bf1 {[%emt 0:01:09]} Rg7 {[%emt 0:00:34]} 27. Nc3 {[%emt 0:00:37]} f5 {[%emt 0:02:12]} 28. Nxa4 {[%emt 0:00:22]} Nd3 {[%emt 0:01:03]} 29. Bxd3 {[%emt 0:02:00]} exd3 {[%emt 0:00:02]} 30. Qxd3 {[%emt 0:00:06]} Qxh4 {[%emt 0:03:11]} 31. Qc3 {[%emt 0:00:04]} f6 {[%emt 0:01:16]} 32. d4 {[%emt 0:08:19]} Rbg8 {[%emt 0:02:06]} 33. Raa2 {[%emt 0:03:06]} Rg6 {[%emt 0:00:58]} 34. d5 {[%emt 0:00:42]} Rh6 {[%emt 0:00:45]} 35. Rf1 {[%emt 0:00:04]} Bf3 {[%emt 0:02:14]} 0-1

[Event "2nd Goa GM Open 2019"]
[Site "Goa"]
[Date "2019.06.19"]
[Round "3.8"]
[White "Nitish Belurkar"]
[Black "Iniyan, P."]
[Result "0-1"]
[ECO "B40"]
[WhiteElo "2353"]
[BlackElo "2525"]
[Annotator "ChessBase"]
[PlyCount "104"]
[EventDate "2019.06.17"]
[EventType "swiss"]
[EventCountry "IND"]
[SourceTitle "playchess.com"]
[Source "ChessBase"]
[SourceQuality "1"]
[TimeControl "5400+30"]

1. e4 {[%emt 0:00:00]} c5 {[%emt 0:01:11]} 2. Nf3 {[%emt 0:00:00]} e6 {[%emt 0:00:05]} 3. c3 {[%emt 0:00:16]} Nf6 {[%emt 0:00:17]} 4. e5 {[%emt 0:00:05]} Nd5 {[%emt 0:00:07]} 5. d4 {[%emt 0:00:05]} cxd4 {[%emt 0:00:07]} 6. cxd4 {[%emt 0:00:06]} d6 {[%emt 0:00:08]} 7. a3 {[%emt 0:00:18]} Bd7 {[%emt 0:00:26]} 8. Bd3 {[%emt 0:00:10]} Bc6 {[%emt 0:00:07]} 9. O-O {[%emt 0:01:00]} Nd7 {[%emt 0:00:02]} 10. b4 {[%emt 0:00:27]} a6 {[%emt 0:00:09]} 11. Qe2 {[%emt 0:00:18]} Be7 {[%emt 0:04:10]} 12. Bd2 {[%emt 0:00:47]} N7b6 {[%emt 0:00:49]} 13. Nc3 {[%emt 0:02:29]} Nxc3 {[%emt 0:01:48]} 14. Bxc3 {[%emt 0:00:09]} Qd7 {[%emt 0:00:06]} 15. Rfc1 {[%emt 0:14:03]} Bb5 {[%emt 0:00:55]} 16. Bd2 {[%emt 0:02:52]} O-O {[%emt 0:04:54]} 17. Bg5 {[%emt 0:13:23]} Bxd3 {[%emt 0:19:22]} 18. Qxd3 {[%emt 0:00:08]} Rfc8 {[%emt 0:00:07]} 19. Bxe7 {[%emt 0:04:57]} Qxe7 {[%emt 0:00:05]} 20. exd6 {[%emt 0:03:34]} Qxd6 {[%emt 0:00:06]} 21. Ne5 {[%emt 0:04:46]} Rd8 {[%emt 0:04:48]} 22. Qf3 {[%emt 0:01:29]} Qe7 {[%emt 0:00:12]} 23. Nc4 {[%emt 0:01:59]} Nxc4 {[%emt 0:04:11]} 24. Rxc4 {[%emt 0:00:13]} Rd7 {[%emt 0:01:42]} 25. Rac1 {[%emt 0:03:02]} Rad8 {[%emt 0:03:12]} 26. g3 {[%emt 0:00:13]} g6 {[%emt 0:03:45]} 27. h4 {[%emt 0:01:55]} Kg7 {[%emt 0:01:41]} 28. Qf4 {[%emt 0:05:18]} Qf6 {[%emt 0:00:42]} 29. Qe5 {[%emt 0:09:54]} Rd5 {[%emt 0:02:45]} 30. Qxf6+ {[%emt 0:05:20]} Kxf6 {[%emt 0:00:08]} 31. Kf1 {[%emt 0:04:08]} Ke7 {[%emt 0:05:00]} 32. Rd1 {[%emt 0:02:01]} R8d7 {[%emt 0:03:37]} 33. Rd3 {[%emt 0:03:27]} Kd8 {[%emt 0:09:30]} 34. Rf3 {[%emt 0:01:14]} f5 {[%emt 0:02:58]} 35. Rfc3 {[%emt 0:03:09]} Rxd4 {[%emt 0:00:30]} 36. Rc8+ {[%emt 0:00:15]} Ke7 {[%emt 0:00:13]} 37. Rh8 {[%emt 0:02:13]} Kf6 {[%emt 0:00:09]} 38. Rf8+ {[%emt 0:00:35]} Ke7 {[%emt 0:02:42]} 39. Rh8 {[%emt 0:00:13]} Kd6 {[%emt 0:00:17]} 40. Ke2 {[%emt 0:01:54]} e5 {[%emt 0:00:06]} 41. Re8 {[%emt 0:02:31]} Rd5 {[%emt 0:00:10]} 42. Rcc8 {[%emt 0:00:48]} e4 {[%emt 0:01:26]} 43. Rc3 {[%emt 0:04:03]} Re5 {[%emt 0:01:20]} 44. Rec8 {[%emt 0:00:16]} Ke6 {[%emt 0:00:52]} 45. Ke3 {[%emt 0:01:52]} Red5 {[%emt 0:00:12]} 46. Re8+ {[%emt 0:02:12]} Kf7 {[%emt 0:00:14]} 47. Rec8 {[%emt 0:01:50]} Kf6 {[%emt 0:03:14]} 48. Rf8+ {[%emt 0:00:28]} Kg7 {[%emt 0:00:06]} 49. Rfc8 {[%emt 0:00:03]} Rd3+ {[%emt 0:02:06]} 50. Kf4 {[%emt 0:00:06]} Kh6 {[%emt 0:04:29]} 51. g4 {[%emt 0:02:19]} Rxc3 {[%emt 0:01:59]} 52. Rxc3 {[%emt 0:00:02]} Rd3 {[%emt 0:00:18]} 0-1

[Event "2nd Goa GM Open 2019"]
[Site "Goa"]
[Date "2019.06.19"]
[Round "3.9"]
[White "Anurag, Mhamal"]
[Black "Sidhant, Mohapatra"]
[Result "1/2-1/2"]
[ECO "A06"]
[WhiteElo "2497"]
[BlackElo "2351"]
[Annotator "ChessBase"]
[PlyCount "60"]
[EventDate "2019.06.17"]
[EventType "swiss"]
[EventCountry "IND"]
[SourceTitle "playchess.com"]
[Source "ChessBase"]
[SourceQuality "1"]
[TimeControl "5400+30"]

1. Nf3 {[%emt 0:01:15]} d5 {[%emt 0:00:16]} 2. g3 {[%emt 0:00:20]} c6 {[%emt 0:00:33]} 3. Bg2 {[%emt 0:00:04]} Nf6 {[%emt 0:00:09]} 4. d3 {[%emt 0:00:40]} Bg4 {[%emt 0:00:25]} 5. h3 {[%emt 0:00:14]} Bh5 {[%emt 0:00:24]} 6. O-O {[%emt 0:02:16]} Nbd7 {[%emt 0:00:05]} 7. Qe1 {[%emt 0:04:47]} e5 {[%emt 0:01:40]} 8. e4 {[%emt 0:00:09]} dxe4 {[%emt 0:01:09]} 9. dxe4 {[%emt 0:00:05]} Bxf3 {[%emt 0:00:28]} 10. Bxf3 {[%emt 0:00:05]} Bc5 {[%emt 0:00:08]} 11. Nd2 {[%emt 0:02:18]} a5 {[%emt 0:00:42]} 12. a4 {[%emt 0:15:50]} O-O {[%emt 0:02:21]} 13. Nc4 {[%emt 0:00:09]} Re8 {[%emt 0:03:18]} 14. Qe2 {[%emt 0:21:12]} Qc7 {[%emt 0:02:13]} 15. Bg5 {[%emt 0:00:48]} h6 {[%emt 0:00:30]} 16. Bd2 {[%emt 0:00:42]} b6 {[%emt 0:02:55]} 17. Bg2 {[%emt 0:00:14]} Nf8 {[%emt 0:08:18]} 18. Ne3 {[%emt 0:01:18]} Rad8 {[%emt 0:07:33]} 19. c3 {[%emt 0:12:46]} Ne6 {[%emt 0:01:46]} 20. Rad1 {[%emt 0:01:37]} Bf8 {[%emt 0:03:11]} 21. Bc1 {[%emt 0:04:44]} Nc5 {[%emt 0:05:13]} 22. Qc2 {[%emt 0:00:03]} Rxd1 {[%emt 0:00:09]} 23. Rxd1 {[%emt 0:00:05]} Rd8 {[%emt 0:00:25]} 24. Rxd8 {[%emt 0:14:19]} Qxd8 {[%emt 0:00:36]} 25. Nc4 {[%emt 0:00:07]} Qd3 {[%emt 0:07:12]} 26. Qxd3 {[%emt 0:00:02]} Nxd3 {[%emt 0:00:08]} 27. Be3 {[%emt 0:00:04]} b5 {[%emt 0:00:43]} 28. axb5 {[%emt 0:00:02]} cxb5 {[%emt 0:00:06]} 29. Nxa5 {[%emt 0:00:05]} Nxb2 {[%emt 0:00:06]} 30. Nb3 {[%emt 0:02:17]} Nc4 {[%emt 0:02:16]} 1/2-1/2

[Event "2nd Goa GM Open 2019"]
[Site "Goa"]
[Date "2019.06.19"]
[Round "3.10"]
[White "Mitrabha, Guha"]
[Black "Rahman, Ziaur"]
[Result "1-0"]
[ECO "D30"]
[WhiteElo "2341"]
[BlackElo "2481"]
[Annotator "ChessBase"]
[PlyCount "109"]
[EventDate "2019.06.17"]
[EventType "swiss"]
[EventCountry "IND"]
[SourceTitle "playchess.com"]
[Source "ChessBase"]
[SourceQuality "1"]
[TimeControl "5400+30"]

1. d4 {[%emt 0:00:00]} d5 {[%emt 0:02:01]} 2. c4 {[%emt 0:00:00]} e6 {[%emt 0:00:09]} 3. Nf3 {[%emt 0:00:00]} Nf6 {[%emt 0:01:02]} 4. e3 {[%emt 0:00:00]} a6 {[%emt 0:01:26]} 5. Nbd2 {[%emt 0:00:41]} c5 {[%emt 0:05:13]} 6. dxc5 {[%emt 0:01:32]} Bxc5 {[%emt 0:00:54]} 7. a3 {[%emt 0:00:05]} dxc4 {[%emt 0:06:46]} 8. Nxc4 {[%emt 0:00:51]} Qxd1+ {[%emt 0:01:07]} 9. Kxd1 {[%emt 0:01:24]} O-O {[%emt 0:03:24]} 10. b4 {[%emt 0:01:22]} Ba7 {[%emt 0:02:02]} 11. Bb2 {[%emt 0:00:04]} Nc6 {[%emt 0:02:30]} 12. Bd3 {[%emt 0:02:19]} b5 {[%emt 0:04:12]} 13. Nd6 {[%emt 0:04:06]} Rd8 {[%emt 0:03:25]} 14. Nxc8 {[%emt 0:00:03]} Rxd3+ {[%emt 0:00:52]} 15. Ke2 {[%emt 0:00:03]} Rb3 16. Bxf6 {[%emt 0:00:03]} gxf6 {[%emt 0:04:11]} 17. Nxa7 {[%emt 0:00:04]} Rb2+ {[%emt 0:03:37]} 18. Nd2 {[%emt 0:02:08]} Nxa7 {[%emt 0:03:26]} 19. Rhb1 {[%emt 0:00:05]} Rc2 {[%emt 0:00:42]} 20. Rc1 {[%emt 0:00:02]} Rb2 {[%emt 0:03:38]} 21. Rc3 {[%emt 0:00:19]} Rd8 {[%emt 0:04:31]} 22. Rd3 {[%emt 0:00:16]} Rc8 {[%emt 0:00:22]} 23. Kd1 {[%emt 0:00:12]} Rbc2 {[%emt 0:05:08]} 24. Rd7 {[%emt 0:00:03]} Nc6 {[%emt 0:05:37]} 25. Kxc2 {[%emt 0:00:01]} Ne5+ {[%emt 0:00:05]} 26. Kb3 {[%emt 0:00:02]} Nxd7 {[%emt 0:00:06]} 27. Ne4 {[%emt 0:00:12]} Kf8 {[%emt 0:01:18]} 28. a4 {[%emt 0:00:02]} bxa4+ {[%emt 0:00:46]} 29. Rxa4 {[%emt 0:00:03]} Rc6 {[%emt 0:00:35]} 30. Ra5 {[%emt 0:00:02]} Ke7 {[%emt 0:02:17]} 31. Nc5 {[%emt 0:00:08]} Nb8 {[%emt 0:02:09]} 32. Kc4 {[%emt 0:00:24]} f5 {[%emt 0:04:05]} 33. Ra3 {[%emt 0:01:19]} Rb6 {[%emt 0:01:21]} 34. f3 {[%emt 0:00:13]} Rd6 {[%emt 0:01:12]} 35. Rd3 {[%emt 0:00:46]} Rxd3 {[%emt 0:05:53]} 36. Kxd3 {[%emt 0:00:03]} Kd6 {[%emt 0:00:10]} 37. Kc4 {[%emt 0:00:01]} Kc6 {[%emt 0:00:45]} 38. Nxa6 {[%emt 0:00:07]} Nd7 {[%emt 0:00:31]} 39. Nc5 {[%emt 0:04:06]} Nb6+ {[%emt 0:00:35]} 40. Kd4 {[%emt 0:01:02]} Nd5 {[%emt 0:01:37]} 41. Nd3 {[%emt 0:00:19]} f6 {[%emt 0:00:41]} 42. f4 {[%emt 0:00:06]} Nc7 {[%emt 0:01:01]} 43. Nc5 {[%emt 0:00:38]} Nb5+ {[%emt 0:01:22]} 44. Kd3 {[%emt 0:01:29]} e5 {[%emt 0:00:32]} 45. g3 {[%emt 0:00:45]} Nd6 {[%emt 0:01:01]} 46. e4 {[%emt 0:00:30]} exf4 {[%emt 0:01:49]} 47. gxf4 {[%emt 0:00:05]} fxe4+ {[%emt 0:04:44]} 48. Nxe4 {[%emt 0:00:02]} Ne8 {[%emt 0:00:07]} 49. Kc4 {[%emt 0:00:44]} f5 {[%emt 0:00:31]} 50. b5+ {[%emt 0:00:01]} Kb6 {[%emt 0:00:18]} 51. Nc3 {[%emt 0:00:02]} Kb7 {[%emt 0:01:17]} 52. Kd5 {[%emt 0:00:30]} Nf6+ {[%emt 0:00:06]} 53. Ke6 {[%emt 0:00:05]} Ng4 {[%emt 0:00:26]} 54. h4 {[%emt 0:00:05]} Ne3 {[%emt 0:00:14]} 55. Nd5 {[%emt 0:00:10]} 1-0

[Event "2nd Goa GM Open 2019"]
[Site "Goa"]
[Date "2019.06.19"]
[Round "3.11"]
[White "Kostenko, Petr"]
[Black "Konguvel, Ponnuswamy"]
[Result "1-0"]
[ECO "E73"]
[WhiteElo "2473"]
[BlackElo "2293"]
[Annotator "ChessBase"]
[PlyCount "69"]
[EventDate "2019.06.17"]
[EventType "swiss"]
[EventCountry "IND"]
[SourceTitle "playchess.com"]
[Source "ChessBase"]
[SourceQuality "1"]
[TimeControl "5400+30"]

1. d4 {[%emt 0:00:00]} Nf6 {[%emt 0:00:12]} 2. c4 {[%emt 0:00:01]} g6 {[%emt 0:00:19]} 3. Nc3 {[%emt 0:00:12]} Bg7 {[%emt 0:02:05]} 4. e4 {[%emt 0:00:09]} d6 {[%emt 0:00:05]} 5. Be2 {[%emt 0:00:06]} Nbd7 {[%emt 0:01:41]} 6. Be3 {[%emt 0:05:30]} e5 {[%emt 0:02:44]} 7. Nf3 {[%emt 0:05:40]} O-O {[%emt 0:01:46]} 8. d5 {[%emt 0:00:20]} Ng4 {[%emt 0:18:47]} 9. Bg5 {[%emt 0:00:09]} f6 {[%emt 0:00:04]} 10. Bh4 {[%emt 0:00:26]} a5 {[%emt 0:08:59]} 11. Nd2 {[%emt 0:04:00]} Nh6 {[%emt 0:00:18]} 12. O-O {[%emt 0:00:37]} g5 {[%emt 0:06:26]} 13. Bg3 {[%emt 0:00:47]} f5 {[%emt 0:00:05]} 14. exf5 {[%emt 0:00:27]} Nxf5 {[%emt 0:00:28]} 15. Nde4 {[%emt 0:00:16]} h6 {[%emt 0:01:02]} 16. Rc1 {[%emt 0:00:56]} b6 {[%emt 0:01:07]} 17. Bg4 {[%emt 0:04:41]} Nf6 {[%emt 0:06:01]} 18. Nxf6+ {[%emt 0:00:30]} Qxf6 {[%emt 0:00:05]} 19. Nb5 {[%emt 0:01:36]} Nxg3 {[%emt 0:15:29]} 20. hxg3 {[%emt 0:00:14]} Bxg4 {[%emt 0:00:04]} 21. Qxg4 {[%emt 0:00:04]} Rf7 {[%emt 0:00:05]} 22. Qh5 {[%emt 0:09:12]} e4 {[%emt 0:04:15]} 23. Rc2 {[%emt 0:04:30]} e3 {[%emt 0:09:11]} 24. Re2 {[%emt 0:03:39]} Re8 {[%emt 0:02:56]} 25. f3 {[%emt 0:08:47]} Ree7 {[%emt 0:02:14]} 26. Rfe1 {[%emt 0:01:02]} Qe5 {[%emt 0:00:51]} 27. Kh2 {[%emt 0:02:13]} Re8 {[%emt 0:02:22]} 28. b3 {[%emt 0:01:42]} Kf8 {[%emt 0:01:02]} 29. Qg6 {[%emt 0:06:28]} Rfe7 {[%emt 0:03:33]} 30. Rxe3 {[%emt 0:02:06]} Qxe3 {[%emt 0:01:21]} 31. Rxe3 {[%emt 0:00:06]} Rxe3 {[%emt 0:00:03]} 32. Nxc7 {[%emt 0:00:15]} R8e7 {[%emt 0:00:28]} 33. Qxd6 {[%emt 0:01:42]} Be5 {[%emt 0:00:30]} 34. Ne6+ {[%emt 0:00:10]} Kf7 {[%emt 0:00:20]} 35. Qxb6 {[%emt 0:00:13]} 1-0

[Event "2nd Goa GM Open 2019"]
[Site "Goa"]
[Date "2019.06.19"]
[Round "3.12"]
[White "Bhambure, Shantanu"]
[Black "Neverov, Valeriy"]
[Result "0-1"]
[ECO "A50"]
[WhiteElo "2248"]
[BlackElo "2470"]
[Annotator "ChessBase"]
[PlyCount "84"]
[EventDate "2019.06.17"]
[EventType "swiss"]
[EventCountry "IND"]
[SourceTitle "playchess.com"]
[Source "ChessBase"]
[SourceQuality "1"]
[TimeControl "5400+30"]

1. d4 {[%emt 0:00:00]} Nf6 {[%emt 0:00:00]} 2. c4 {[%emt 0:00:00]} g6 {[%emt 0:00:00]} 3. f3 {[%emt 0:00:00]} c5 {[%emt 0:06:59]} 4. d5 {[%emt 0:00:00]} e6 {[%emt 0:00:10]} 5. e4 {[%emt 0:00:11]} d6 {[%emt 0:00:17]} 6. Nc3 {[%emt 0:00:11]} Bg7 {[%emt 0:04:16]} 7. Nge2 {[%emt 0:00:14]} O-O {[%emt 0:00:50]} 8. Ng3 {[%emt 0:00:11]} exd5 {[%emt 0:10:08]} 9. cxd5 {[%emt 0:00:12]} Na6 {[%emt 0:00:33]} 10. Be2 {[%emt 0:00:54]} Nc7 {[%emt 0:00:50]} 11. O-O {[%emt 0:00:21]} Bd7 {[%emt 0:02:25]} 12. a4 {[%emt 0:02:20]} a6 {[%emt 0:00:26]} 13. Bf4 {[%emt 0:05:15]} Nfe8 {[%emt 0:07:20]} 14. Qd2 {[%emt 0:04:47]} b5 {[%emt 0:00:47]} 15. Bg5 {[%emt 0:07:46]} f6 {[%emt 0:03:02]} 16. Bh6 {[%emt 0:01:02]} b4 {[%emt 0:04:34]} 17. Nd1 {[%emt 0:02:19]} Qe7 {[%emt 0:02:28]} 18. Bxg7 {[%emt 0:06:27]} Nxg7 {[%emt 0:04:48]} 19. Ne3 {[%emt 0:06:23]} f5 {[%emt 0:00:41]} 20. exf5 {[%emt 0:02:14]} Rae8 {[%emt 0:05:42]} 21. Nc4 {[%emt 0:02:36]} Nxf5 {[%emt 0:00:10]} 22. Nxf5 {[%emt 0:02:49]} Rxf5 {[%emt 0:03:59]} 23. Bd3 {[%emt 0:12:25]} Rxd5 {[%emt 0:01:27]} 24. Nb6 {[%emt 0:04:53]} Rd4 {[%emt 0:05:02]} 25. Rfe1 {[%emt 0:05:55]} Qf7 {[%emt 0:01:15]} 26. Nxd7 {[%emt 0:04:01]} Qxd7 {[%emt 0:00:11]} 27. Qc2 {[%emt 0:00:56]} Kg7 {[%emt 0:07:11]} 28. Bf1 {[%emt 0:01:45]} a5 {[%emt 0:02:06]} 29. Red1 {[%emt 0:01:22]} Rxd1 {[%emt 0:02:52]} 30. Rxd1 {[%emt 0:00:08]} Qe6 {[%emt 0:00:29]} 31. Kh1 {[%emt 0:01:47]} Nd5 {[%emt 0:02:09]} 32. Qd2 {[%emt 0:04:40]} Ne3 {[%emt 0:01:19]} 33. Re1 {[%emt 0:00:32]} d5 {[%emt 0:00:26]} 34. Bb5 {[%emt 0:00:58]} Re7 {[%emt 0:00:13]} 35. b3 {[%emt 0:00:43]} Qe5 {[%emt 0:03:13]} 36. Rc1 {[%emt 0:03:09]} c4 {[%emt 0:02:44]} 37. h3 {[%emt 0:00:47]} c3 {[%emt 0:02:41]} 38. Qf2 {[%emt 0:00:26]} Nf5 {[%emt 0:00:38]} 39. Bd3 {[%emt 0:00:37]} Ng3+ {[%emt 0:06:17]} 40. Kg1 {[%emt 0:00:13]} Ne2+ {[%emt 0:00:22]} 41. Bxe2 {[%emt 0:00:08]} Qxe2 {[%emt 0:00:02]} 42. Qd4+ {[%emt 0:00:19]} Qe5 {[%emt 0:00:09]} 0-1

[Event "2nd Goa GM Open 2019"]
[Site "Goa"]
[Date "2019.06.19"]
[Round "3.13"]
[White "Aaryan Varshney"]
[Black "Vignesh N R"]
[Result "1/2-1/2"]
[ECO "E11"]
[WhiteElo "2196"]
[BlackElo "2459"]
[Annotator "ChessBase"]
[PlyCount "132"]
[EventDate "2019.06.17"]
[EventType "swiss"]
[EventCountry "IND"]
[SourceTitle "playchess.com"]
[Source "ChessBase"]
[SourceQuality "1"]
[TimeControl "5400+30"]

1. d4 {[%emt 0:00:00]} Nf6 {[%emt 0:01:09]} 2. Nf3 {[%emt 0:00:00]} e6 {[%emt 0:00:42]} 3. c4 {[%emt 0:00:00]} Bb4+ {[%emt 0:01:04]} 4. Bd2 {[%emt 0:00:00]} c5 {[%emt 0:00:08]} 5. Bxb4 {[%emt 0:00:39]} cxb4 {[%emt 0:00:02]} 6. g3 {[%emt 0:00:13]} a5 {[%emt 0:00:11]} 7. Bg2 {[%emt 0:00:12]} d6 {[%emt 0:00:06]} 8. O-O {[%emt 0:00:14]} O-O {[%emt 0:00:05]} 9. a3 {[%emt 0:00:15]} Na6 {[%emt 0:00:05]} 10. axb4 {[%emt 0:00:09]} Nxb4 {[%emt 0:00:06]} 11. Nc3 {[%emt 0:00:04]} Qc7 {[%emt 0:03:48]} 12. b3 {[%emt 0:08:13]} Bd7 {[%emt 0:01:34]} 13. Nd2 {[%emt 0:02:29]} Rac8 {[%emt 0:02:08]} 14. e3 {[%emt 0:01:13]} Rfe8 {[%emt 0:00:45]} 15. Qe2 {[%emt 0:05:14]} b6 {[%emt 0:00:04]} 16. Rfd1 {[%emt 0:00:22]} Qb8 {[%emt 0:07:25]} 17. Rac1 {[%emt 0:01:06]} Rcd8 {[%emt 0:01:28]} 18. Nde4 {[%emt 0:01:04]} Nxe4 {[%emt 0:00:06]} 19. Nxe4 {[%emt 0:00:21]} Bc6 {[%emt 0:06:06]} 20. Nc3 {[%emt 0:00:34]} Bxg2 {[%emt 0:00:28]} 21. Kxg2 {[%emt 0:00:02]} Rc8 {[%emt 0:05:15]} 22. Qf3 {[%emt 0:08:34]} Red8 {[%emt 0:02:32]} 23. h4 {[%emt 0:01:24]} d5 {[%emt 0:00:55]} 24. cxd5 {[%emt 0:03:22]} Nxd5 {[%emt 0:03:20]} 25. Nxd5 {[%emt 0:01:09]} Rxd5 {[%emt 0:01:57]} 26. Rxc8+ {[%emt 0:02:56]} Qxc8 {[%emt 0:00:02]} 27. e4 {[%emt 0:00:14]} Rd6 {[%emt 0:03:05]} 28. d5 {[%emt 0:00:49]} exd5 {[%emt 0:01:23]} 29. Rxd5 {[%emt 0:00:39]} Qd8 {[%emt 0:12:13]} 30. Qd3 {[%emt 0:07:20]} Rxd5 {[%emt 0:00:05]} 31. exd5 {[%emt 0:00:08]} Qd6 {[%emt 0:00:12]} 32. Kg1 {[%emt 0:01:40]} h6 {[%emt 0:01:51]} 33. Qe3 {[%emt 0:03:30]} Kf8 {[%emt 0:01:27]} 34. Qd4 {[%emt 0:01:13]} h5 {[%emt 0:00:34]} 35. Qe3 {[%emt 0:02:01]} g6 {[%emt 0:00:17]} 36. Qe4 {[%emt 0:00:32]} Qf6 {[%emt 0:07:44]} 37. Qe3 {[%emt 0:00:51]} Qd6 {[%emt 0:00:43]} 38. Qe4 {[%emt 0:00:38]} Kg7 {[%emt 0:00:58]} 39. Qd4+ {[%emt 0:00:39]} Kg8 {[%emt 0:00:13]} 40. Qe3 {[%emt 0:00:21]} Qxd5 {[%emt 0:00:24]} 41. Qxb6 {[%emt 0:00:07]} Qe5 {[%emt 0:00:10]} 42. Kg2 {[%emt 0:00:36]} Kg7 {[%emt 0:00:40]} 43. Kg1 {[%emt 0:00:18]} Kh7 {[%emt 0:00:09]} 44. Kg2 {[%emt 0:00:05]} Qe4+ {[%emt 0:00:08]} 45. Kh2 {[%emt 0:00:41]} Qf3 {[%emt 0:04:37]} 46. Kg1 {[%emt 0:00:28]} Qc3 {[%emt 0:00:08]} 47. Kg2 {[%emt 0:00:18]} Kg7 {[%emt 0:00:13]} 48. Kh2 {[%emt 0:01:27]} Qe5 {[%emt 0:01:52]} 49. Kg2 {[%emt 0:00:20]} Qd5+ {[%emt 0:00:10]} 50. Kh2 {[%emt 0:00:18]} Qd2 {[%emt 0:00:17]} 51. Kg2 {[%emt 0:00:13]} Kf8 {[%emt 0:00:07]} 52. Qb7 {[%emt 0:03:09]} Qc3 {[%emt 0:00:35]} 53. Qe4 {[%emt 0:01:12]} Kg7 {[%emt 0:00:55]} 54. Qd5 {[%emt 0:01:30]} Qa1 {[%emt 0:01:39]} 55. Qc5 {[%emt 0:00:42]} Qe1 {[%emt 0:01:20]} 56. Qd4+ {[%emt 0:00:14]} Kh7 {[%emt 0:00:11]} 57. Qd5 {[%emt 0:00:17]} Qe7 {[%emt 0:01:13]} 58. Qxa5 {[%emt 0:00:08]} Qb7+ {[%emt 0:00:01]} 59. Kg1 {[%emt 0:00:08]} Qxb3 {[%emt 0:00:18]} 60. Qe5 {[%emt 0:00:11]} Qf3 {[%emt 0:00:06]} 61. Qe7 {[%emt 0:02:44]} Kg7 {[%emt 0:00:12]} 62. Qe5+ {[%emt 0:00:05]} Qf6 {[%emt 0:00:07]} 63. Qe4 {[%emt 0:00:29]} Qa1+ {[%emt 0:01:18]} 64. Kg2 {[%emt 0:00:01]} Qf6 {[%emt 0:00:02]} 65. Kg1 {[%emt 0:00:07]} Qa1+ {[%emt 0:00:02]} 66. Kg2 {[%emt 0:00:05]} Qf6 {[%emt 0:00:03]} 1/2-1/2